Cogmind - Beta 12 X4 @@@ ROGUE MODE // 2022.12.15 @ 01:34:18 Player: Runia Result: Destroyed by D-53 Grenadier with Mini Grenade Launcher Performance ------------- Evolutions (0) 0 Regions Visited (2) 400 Robots Destroyed (34) 170 Value Destroyed (763) 763 Prototype IDs (2) 40 Alien Tech Used (0) 0 Bonus (0) 0 TOTAL SCORE: 1373 Bonus ------- None Cogmind --------- Core Integrity 0/250 Matter 300/300 Energy 17/100 System Corruption 0% Temperature Cool (0) Movement Core (350) Ox6 Location -10/Mines Parts ------- > --- POWER (1) -------- (None) > --- PROPULSION (2) --- (None) > --- UTILITY (2) ------ Large Storage Unit > --- WEAPON (2) ------- (None) > --- INVENTORY (15) --- Light Treads Armored Wheel Cooling System Cooling System Light Armor Plating Light Armor Plating Spread Laser Spread Laser Beam Cannon Assault Rifle Grenade Launcher Grenade Launcher Peak State ------------ > --- POWER ------------ Ion Engine > --- PROPULSION ------- Light Treads Light Treads > --- UTILITY ---------- Cooling System Medium Storage Unit > --- WEAPON ----------- Spread Laser Spread Laser > --- INVENTORY -------- Ion Engine Light Treads Armored Wheel Armored Wheel Spread Laser Spread Laser Assault Rifle Light Assault Rifle Light Assault Rifle Grenade Launcher [Rating: 11] Favorites ----------- Power Ion Engine Engine Ion Engine Propulsion Light Treads Treads Light Treads Leg Aluminum Leg Utility Cooling System Device Cooling System Storage Medium Storage Unit Processor Targeting Computer Weapon Spread Laser Energy Gun Spread Laser Ballistic Gun Light Assault Rifle Launcher Grenade Launcher Build | -11 -10 -10 ------- Run | Scr Mat Min Slots Evolved . | . . . Power . | . . . Propulsion . | . . . Utility . | . . . Weapon . | . . . Parts Attached 19 | 2 17 . Power 1 | . 1 . Engine 1 | . 1 . Core . | . . . Reactor . | . . . Propulsion 4 | 2 2 . Treads 4 | 2 2 . Leg . | . . . Wheel . | . . . Hover . | . . . Flight . | . . . Utility 4 | . 4 . Device 1 | . 1 . Storage 2 | . 2 . Processor 1 | . 1 . Hackware . | . . . Protection . | . . . Artifact . | . . . Weapon 10 | . 10 . Energy Gun 5 | . 5 . Energy Cannon . | . . . Ballistic Gun 3 | . 3 . Ballistic Cannon . | . . . Launcher 2 | . 2 . Special Weapon . | . . . Impact Weapon . | . . . Slashing Weapon . | . . . Piercing Weapon . | . . . Special Melee Weapon . | . . . Unidentified Prototypes . | . . . Parts Lost 6 | . . 6 Power 1 | . . 1 Propulsion 2 | . . 2 Utility 1 | . . 1 Weapon 2 | . . 2 Highest Loss Streak 6 | . . 6 To Critical Strikes . | . . . Average Slot Usage (%) 97 | . 97 95 Engine 13 | . 14 12 Treads 27 | . 27 26 Device 9 | . 9 13 Storage 14 | . 14 14 Processor 2 | . 2 . Energy Gun 22 | . 21 27 Ballistic Gun 5 | . 5 . Naked Turns . | . . . Heaviest Build 33 | 12 33 33 Greatest Support 40 | 40 40 40 Greatest Overweight (x) . | . . . Average Overweight (x) . | . . . Largest Inventory Capacity 15 | 8 15 15 Average Capacity 11 | 8 11 15 Most Carried 13 | 6 13 12 Average Carried 9 | 4 9 12 Final Capacity 15 | 8 15 15 Final Carried 12 | 2 12 12 Class Distribution -------------------- 100% | Mutant Dominant Class ---------------- Mutant | -10/Materials Mutant | -10/Mines Resources | -11 -10 -10 ----------- Run | Scr Mat Min Matter Collected 451 | 200 251 . Remotely . | . . . Salvage Created 861 | . 624 237 Parts 62 | . 47 15 Haulers Intercepted 2 | . 2 . Recyclers Shooed 1 | . . 1 Parts Field Recycled . | . . . Retrieved Matter . | . . . Parts Self-Destructed . | . . . Prevented . | . . . Kills | -11 -10 -10 ------- Run | Scr Mat Min Combat Hostiles Destroyed 25 | . 18 7 Guns 20 | . 13 7 AOE 5 | . 5 . Classes Destroyed 7 | . 7 . Hauler 2 | . 2 . Recycler 2 | . 1 1 Mechanic 1 | . 1 . Operator 2 | . 2 . Watcher 2 | . 2 . Swarmer 9 | . 6 3 Grunt 16 | . 12 4 Best Kill Streak 5 | . 5 3 Combat Bots Only 5 | . 5 3 Max Kills in Single Turn 3 | . 3 1 Gunslinging . | . . . Exploded 3 | . 3 . Melee . | . . . Uniques/NPCs Destroyed . | . . . Combat | -11 -10 -10 -------- Run | Scr Mat Min Damage Taken 1279 | . 607 672 Core 261 | . 82 179 Absorbed by Shields . | . . . Regen/Repaired (Parts) 147 | . 147 . Core Remaining (%) 100 | 100 . . Volleys Fired 81 | . 60 21 Largest 2 | . 2 2 Hottest 130 | . 130 130 Shots Fired 155 | . 117 38 Gun 153 | . 115 38 Cannon . | . . . Launcher 2 | . 2 . Special . | . . . Kinetic 41 | . 41 . Thermal 112 | . 74 38 Explosive 2 | . 2 . Electromagnetic . | . . . Robot Hit Streak 16 | . 11 16 Robot Miss Streak 10 | . 10 6 Penetration Max . | . . . Secondary Targets 1 | . . 1 Max Gunslinging Chain 1 | . . 1 Shots Hit Robots 132 | . 96 36 Core Hits 128 | . 87 41 Critical Kills 1 | . 1 . Critical Parts Destroyed . | . . . Critical Strikes 1 | . 1 . Destroy 1 | . 1 . Melee Attacks . | . . . Impact . | . . . Slashing . | . . . Piercing . | . . . Sneak Attacks . | . . . Combat Hostiles . | . . . Follow-up Attacks . | . . . Damage Inflicted 1690 | . 1242 448 Guns 1465 | . 1017 448 Cannons . | . . . Explosions 225 | . 225 . Melee . | . . . Ramming . | . . . Kinetic 236 | . 236 . Thermal 1229 | . 781 448 Explosive 225 | . 225 . Electromagnetic . | . . . Impact . | . . . Slashing . | . . . Piercing . | . . . Highest Corruption . | . . . Average Corruption . | . . . Corruption Purged . | . . . Corruption Blocked . | . . . Overload Shots . | . . . Overflow Damage . | . . . Projectiles . | . . . Explosions . | . . . Melee . | . . . Knockbacks . | . . . Impact . | . . . Kinetic . | . . . Secondary . | . . . Self-Inflicted Damage . | . . . Shots . | . . . Rammed . | . . . Targets Rammed . | . . . Kicked . | . . . Crushed . | . . . Highest Temperature 278 | . 278 51 Average Temperature 51 | . 62 14 Received Heat Transfer 438 | . 303 135 Effects 3 | . 3 . Interference 3 | . 3 . Siege Activations . | . . . Robots Corrupted . | . . . Combat Hostiles . | . . . Parts Fried . | . . . Impact Corruptions . | . . . Robots Melted . | . . . Combat Hostiles . | . . . Parts Melted . | . . . Heat Transferred 1836 | . 1296 540 Parts Sabotaged . | . . . Parts Stolen . | . . . Parts Stripped . | . . . Power Chain Reactions . | . . . Missiles Intercepted . | . . . Alert | -11 -10 -10 ------- Run | Scr Mat Min Peak Influence 287 | . 242 287 Initial 87 | . . 87 Average 101 | . 87 204 Maximum Alert Level 1 | . 1 1 Low Security (%) 88 | 100 92 65 Level 1 11 | . 7 34 Level 2 . | . . . Level 3 . | . . . Level 4 . | . . . Level 5 . | . . . High Security . | . . . Max Security . | . . . Squads Dispatched 4 | . 4 . Investigation 3 | . 3 . Extermination . | . . . Reinforcement 1 | . 1 . Assault . | . . . Garrison . | . . . Intercept . | . . . Searches Triggered . | . . . Construction Impeded . | . . . Haulers Reinforced . | . . . Active Scanning Responses . | . . . Cargo Convoy Interrupts . | . . . Stealth | -11 -10 -10 --------- Run | Scr Mat Min Distress Signals 1 | . . 1 Communications Jammed . | . . . Distress Signals . | . . . Times Spotted 39 | . 29 10 Peak Tracking Total 4 | . 3 4 Tactical Retreats 3 | . 2 1 Traps | -11 -10 -10 ------- Run | Scr Mat Min Traps Triggered 1 | . 1 . Indirectly . | . . . Trap Hack Attempts . | . . . Triggered . | . . . Disarmed . | . . . Reprogrammed . | . . . Reused . | . . . Traps Extracted . | . . . Installed . | . . . Triggered . | . . . Machines | -11 -10 -10 ---------- Run | Scr Mat Min Machines Disabled 1 | . 1 . Max in Single Turn 1 | . 1 . Machines Sabotaged . | . . . Overloaded Fab Kills . | . . . Hacking | -11 -10 -10 --------- Run | Scr Mat Min Machines Accessed 9 | . 9 . Terminals 6 | . 6 . Fabricators . | . . . Repair Stations 1 | . 1 . Recycling Units 2 | . 2 . Scanalyzers . | . . . Garrison Access . | . . . Total Hacks 21 | . 21 . Successful 14 | . 14 . Failed 7 | . 7 . Catastrophic 1 | . 1 . Database Lockouts . | . . . Manual 8 | . 8 . Terminals 15 | . 15 . Fabricators . | . . . Repair Stations 4 | . 4 . Recycling Units 2 | . 2 . Scanalyzers . | . . . Garrison Access . | . . . Terminal Hacks 7 | . 7 . Robot Schematic 1 | . 1 . Robot Analysis 2 | . 2 . Prototype ID Bank 1 | . 1 . Unreport Threat 1 | . 1 . Locate Traps 2 | . 2 . Fabricator Hacks . | . . . Repair Station Hacks 4 | . 4 . Scan Component 2 | . 2 . Repair 2 | . 2 . Recycling Unit Hacks . | . . . Scanalyzer . | . . . Garrison Access Hacks . | . . . Unauthorized Hacks 3 | . 3 . Terminals 1 | . 1 . Botnet 1 | . 1 . Fabricators . | . . . Repair Stations . | . . . Recycling Units 2 | . 2 . Tunnel 2 | . 2 . Scanalyzers . | . . . Garrison Access . | . . . Data Cores Recovered 1 | . 1 . Used . | . . . Hacking Detections 7 | . 7 . Full Trace Events . | . . . Feedback Events . | . . . Feedback Blocked . | . . . Robot Schematics Acquired 1 | . 1 . Robots Built . | . . . Authchips . | . . . Time . | . . . Total Robot Build Rating . | . . . Part Schematics Acquired . | . . . Parts Built . | . . . Authchips . | . . . Time . | . . . Total Part Build Rating . | . . . Parts Repaired 2 | . 2 . Time 58 | . 58 . Parts Recycled . | . . . Recycled Matter . | . . . Retrieved Matter . | . . . Retrieved Components . | . . . Parts Scanalyzed . | . . . Part Schematics Acquired . | . . . Parts Damaged . | . . . Bothacking | -11 -10 -10 ------------ Run | Scr Mat Min Used RIF Installer . | . . . Robots Hacked . | . . . Non-combat . | . . . Combat . | . . . Robot Hacks Applied . | . . . Relay Couplers Released . | . . . Fabnet Peak Effective % . | . . . Robots Rewired . | . . . Allies Hacked . | . . . Hacks Repelled . | . . . Allies | -11 -10 -10 -------- Run | Scr Mat Min Total Allies . | . . . Largest Group . | . . . Highest-Rated Group . | . . . Highest-Rated Ally . | . . . Total Orders . | . . . Ally Attacks . | . . . Total Damage . | . . . Kills . | . . . Allies Corrupted . | . . . Allies Melted . | . . . Intel | -11 -10 -10 ------- Run | Scr Mat Min Robot Analysis Total 2 | . 2 . Derelict Logs Recovered 1 | . . 1 Drone Launches . | . . . Drone Recoveries . | . . . Exploration | -11 -10 -10 ------------- Run | Scr Mat Min Turns Passed 1746 | 5 1524 217 Spaces Moved 835 | 1 744 90 Core . | . . . Treads 835 | 1 744 90 Legs . | . . . Wheels . | . . . Hover . | . . . Flight . | . . . Fastest Speed 160 | 160 160 160 Average Speed 160 | 160 160 160 Slowest Speed 160 | 160 160 160 Overloaded Moves . | . . . Propulsion Burnouts . | . . . Robots Hopped . | . . . Cave-ins Triggered . | . . . Exploration Rate (%) 41 | 1 95 29 Regions Visited 2 Branch Regions 1 Pre-discovered Areas 3 | . 2 1 Known Exits Taken . | . . . Unknown Exits Taken 2 | 1 1 . Scrap Searched . | . . . Spaces Dug . | . . . Terrain Destroyed 16 | . 16 . Melee . | . . . Projectile . | . . . AOE 16 | . 16 . Terrain Rammed . | . . . Walls Destroyed . | . . . Machines Disabled . | . . . Actions | -11 -10 -10 --------- Run | Scr Mat Min Total 1101 | 6 970 125 Wait 128 | . 114 14 Move 833 | . 743 90 Hop . | . . . Pick Up 20 | . 20 . Fast Attach 6 | . 6 . Attach 3 | 2 1 . Detach . | . . . Swap 10 | . 10 . Drop 20 | 4 16 . Fire 81 | . 60 21 Melee . | . . . Ram . | . . . Kick . | . . . Crush . | . . . Escape Stasis . | . . . Rewire . | . . . Trap . | . . . Miscellaneous . | . . . Route ------- -11/Scrapyard -10/Materials (discovered 5 exits: [*Mat x3] / [*Min x2]) -10/Mines History --------- Turn | Location | Event 6 | -11/Scrapyard | Discovered new exit (range 0) 6 | -11/Scrapyard | Entered Materials 315 | -10/Materials | Discovered new exit (range 16) 319 | -10/Materials | Build established: Mutant 611 | -10/Materials | Discovered new exit (range 8) 728 | -10/Materials | Discovered new exit (range 14) 740 | -10/Materials | Discovered new exit (range 14) 984 | -10/Materials | Discovered new exit (range 12) 1317 | -10/Materials | Repaired Lgt. Treads 1351 | -10/Materials | Repaired Spread Laser 1530 | -10/Materials | Entered Mines 1695 | -10/Mines | Assembled infested the area 1729 | -10/Mines | Core integrity fell below 50% 1746 | -10/Mines | Core integrity fell below 20% 1747 | -10/Mines | Destroyed by D-53 Grenadier with Mini Grenade Launcher Last Messages --------------- 01656_ K-01 Serf collects debris. 01672_ G-47 Trooper destroyed. 01678_ G-34 Mercenary destroyed. 01695_ ALERT: Infestation in the mines, dispatching Demolisher response squad. 01710_ R-06 Scavenger sends out distress signal. 01713_ R-06 Scavenger destroyed. 01715_ Ion Engine destroyed. 01719_ G-34 Mercenary destroyed. 01726_ C-30 ARC bursts open, deploying its payload. 01726_ D-53 Grenadier unfolds itself. 01727_ The unstable cave ceiling collapses. 01730_ Lgt. Treads destroyed. 01730_ Spread Laser destroyed. 01731_ The unstable cave ceiling collapses. 01739_ Lgt. Treads destroyed. 01739_ Cooling System destroyed. 01745_ The unstable cave ceiling collapses. 01745_ Spread Laser destroyed. 01747_ The unstable cave ceiling collapses. Map ----- +----------------------------------------------------+ | ### ##????##### #?????????????????? | | ### ###?????????# #?????????????????? | | ## ##???????????# #?????????????????? | | ### ##?????????### ####??????????????? | | ##?## #?????????# #??????????????? | | #????## #???????### #??????????????? | | ??????## ##??????# """ #??????????????? | | ???????### ##???????# ## """[* ???????????? | | ?????????## ##????????#??# """%* ???????? | | ?????????## ##???????????# =%*%=## ##??????? | | ?????????# #????????? ?#########? ##???????? | | ?????????# #????????? ???????????? ##????????? | | ????????## ##????????? #????????????##?????????? | | ??????### ##?????????? #??????????????????????? | | ?????## #??????????? ??????????????????????? | | ?????# ##?????????? ??????????????????????? | | ?????# #####?????? ??????????????????????? | | ?????# ##????? ??????????????????????? | | ?????## ## #?????r ??????????????????????? | | ??????###?## #?????#%#??????????????????????? | | ???????????##### ##???### ###????????????????????? | | ???????????????# #???### d ##???????????????????? | | ???????????????#%#??## ##??????????????????? | | ?????#?????????#=#??# #??????????????????? | | ?????# ####%#### #??????????????????? | | ?????# %=[ @ #??????????????????? | | ?????# #####g### #??????????????????? | | ?????#?????###### #?# #??????????????????? | | ???????????# #?### ?????????????????? | | ???????????# ### ##??## #####????????????????? | | ???????????????# #????#######????????????????????? | | ??????????????? #???????????????????????????????? | | ?????????????? ???????????????????????????????? | | ????????????? ???????????????????????????????? | | ????????????? ???????????????????????????????? | | ???????????? ???????????????????????????????? | | ??????????? ##???????????????????????????????? | | ?????????? ?????????????????????????????????? | | ??????????## ?????????????????????????????????? | | ???????????## ?????????????????????????????????? | | ????????????## ?????????????????????????????????? | | ?????????????# ?????????????????????????????????? | | ?????????????## ?????????????????????????????????? | | ???????????????#?????????????????????????????????? | | ?????????????????????????????????????????????????? | | ?????????????????????????????????????????????????? | | ?????????????????????????????????????????????????? | | ?????????????????????????????????????????????????? | | ?????????????????????????????????????????????????? | | ?????????????????????????????????????????????????? | +----------------------------------------------------+ Best States ------------- Heat Dissipation 47 Energy Generation 10 Energy Capacity 250 Matter Stores 300 Matter Capacity 300 Sight Range 16 Terrain Scan Density 10 Evasion (%) 40 Targeting Accuracy 5 Recoil Reduction 2 Item Schematics ----------------- None Robot Schematics ------------------ M-13 Machinist | -10/Materials | Hacked Fabricated ------------ Nothing Alien Tech Used ----------------- None Achievements -------------- None Challenges ------------ None Game ------ Seed ArcAssaultCharge Manual? 0 Play Time 00:14:03 Cumulative 722.3 hours Start 2022.12.15 @ 01:16:25 End 2022.12.15 @ 01:34:18 Sessions 1 Manual Loads 0 Difficulty Rogue Special Mode None Game No. 640 Rogue 640 Adventurer 0 Explorer 0 Win Type - Total 33 Types 14/5/6/1/1/1/4/1/0 Lore% 93 Gallery% 97 Achievement% 80 Wizard Run 0 Options --------- ASCII 0 Keyboard 0 Movement Mouse Keybinds 1 Fullscreen 2 Font 24/Smallcaps Map View 76x50 Tactical HUD 1 Map Filters NONE Filters NONE Steam 1 RUN: b11bcabf-be48-4e1f-b6fa-87853ffee3ad